Cogmind - Beta 13 @@@ ROGUE MODE // 2024.04.02 @ 21:40:39 Player: Arc Result: Destroyed by as-91682 with Assembled Rifle Performance ------------- Evolutions (0) 0 Regions Visited (3) 600 Robots Destroyed (25) 125 Value Destroyed (528) 528 Prototype IDs (2) 40 Alien Tech Used (0) 0 Bonus (325) 325 TOTAL SCORE: 1618 Bonus ------- Follower Combat Kills 25 Aligned with FarCom 300 Cogmind --------- Core Integrity 0/250 Matter 184/300 Energy 100/100 System Corruption 9% Temperature Cool (0) Movement Core (300) Ox5 Location -10/Exiles Parts ------- > --- POWER (1) -------- (None) > --- PROPULSION (2) --- (None) > --- UTILITY (2) ------ Medium Storage Unit > --- WEAPON (2) ------- Heavy Assault Rifle Makeshift Axe > --- INVENTORY (10) --- Ion Engine Aluminum Leg Aluminum Leg Heat Sink Heavy Assault Rifle Peak State ------------ > --- POWER ------------ Light Nuclear Core > --- PROPULSION ------- Aluminum Leg Aluminum Leg > --- UTILITY ---------- Medium Storage Unit Light Armor Plating > --- WEAPON ----------- Beamcaster Heavy Assault Rifle > --- INVENTORY -------- Ion Engine Light Fission Core Aluminum Leg Aluminum Leg Heat Sink Heavy Assault Rifle Heavy Assault Rifle Light Cannon Rocket Launcher Makeshift Axe [Rating: 16] Favorites ----------- Power Ion Engine Engine Ion Engine Power Core Light Nuclear Core Propulsion Aluminum Leg Leg Aluminum Leg Utility Light Armor Plating Device Improved Trap Extractor Storage Medium Storage Unit Protection Light Armor Plating Weapon Heavy Assault Rifle Energy Gun Beamcaster Ballistic Gun Heavy Assault Rifle Ballistic Cannon Light Cannon Launcher Grenade Launcher Slashing Weapon Makeshift Axe Build | -11 -10 -10 -10 ------- Run | Yrd Mat Min Exi Slots Evolved . | . . . . Power . | . . . . Propulsion . | . . . . Utility . | . . . . Weapon . | . . . . Parts Attached 30 | 6 8 13 3 Power 2 | 1 . 1 . Engine 1 | 1 . . . Core 1 | . . 1 . Reactor . | . . . . Propulsion 7 | 2 2 3 . Treads . | . . . . Leg 7 | 2 2 3 . Wheel . | . . . . Hover . | . . . . Flight . | . . . . Utility 8 | 1 4 3 . Device 1 | . . 1 . Storage 3 | 1 2 . . Processor . | . . . . Hackware . | . . . . Protection 4 | . 2 2 . Artifact . | . . . . Weapon 13 | 2 2 6 3 Energy Gun 1 | . . 1 . Energy Cannon . | . . . . Ballistic Gun 7 | 2 2 2 1 Ballistic Cannon 1 | . . 1 . Launcher 3 | . . 2 1 Special Weapon . | . . . . Impact Weapon . | . . . . Slashing Weapon 1 | . . . 1 Piercing Weapon . | . . . . Special Melee Weapon . | . . . . Unidentified Prototypes . | . . . . Corrupted Parts 1 | . . 1 . System Corruption 9 | . . 9 . Parts Lost 6 | . . . 6 Power 1 | . . . 1 Propulsion 2 | . . . 2 Utility 1 | . . . 1 Weapon 2 | . . . 2 Highest Loss Streak 6 | . . . 6 To Critical Strikes 1 | . . . 1 Average Slot Usage (%) 99 | . 99 99 98 Engine 11 | . 14 12 . Core 2 | . . 1 13 Leg 27 | . 28 27 27 Storage 14 | . 14 14 14 Protection 13 | . 13 14 13 Energy Gun 2 | . . 1 13 Ballistic Gun 21 | . 28 19 14 Ballistic Cannon 2 | . . 5 . Naked Turns . | . . . . Heaviest Build 34 | 13 34 26 26 Greatest Support 20 | 20 20 20 20 Greatest Overweight (x) 4 | 4 1 1 1 Average Overweight (x) . | 1 . 1 . Largest Inventory Capacity 15 | 8 15 10 10 Average Capacity 9 | 7 9 10 10 Most Carried 10 | 3 9 10 10 Average Carried 7 | 1 6 8 8 Final Capacity 10 | 8 10 10 10 Final Carried 9 | 1 7 9 5 Class Distribution -------------------- 100% | Mutant Dominant Class ---------------- Mutant | -10/Materials Mutant | -10/Mines Mutant | -10/Exiles Resources | -11 -10 -10 -10 ----------- Run | Yrd Mat Min Exi Matter Collected 915 | 264 253 398 . Remotely . | . . . . Salvage Created 874 | 93 306 374 101 Parts 56 | 2 21 26 7 Haulers Intercepted 2 | . 2 . . Recyclers Shooed 2 | . 1 1 . Parts Field Recycled . | . . . . Retrieved Matter . | . . . . Parts Self-Destructed . | . . . . Prevented . | . . . . Kills | -11 -10 -10 -10 ------- Run | Yrd Mat Min Exi Combat Hostiles Destroyed 21 | . 5 12 4 Guns 12 | . 5 5 2 Cannons 4 | . . 4 . AOE 5 | . . 3 2 Classes Destroyed 10 | 1 6 2 1 Worker 1 | . 1 . . Builder 1 | . 1 . . Tunneler 1 | . . 1 . Hauler 2 | . 2 . . Recycler 1 | 1 . . . Watcher 2 | . 2 . . Swarmer 3 | . 3 . . Grunt 11 | . 2 9 . Zionite 3 | . . . 3 Assembled 7 | . . 3 4 Best Kill Streak 7 | 1 4 4 7 Combat Bots Only 4 | . 3 4 4 Max Kills in Single Turn 2 | 1 1 2 2 Gunslinging . | . . . . Exploded 2 | . . 1 2 Melee . | . . . . Uniques/NPCs Destroyed . | . . . . Combat | -11 -10 -10 -10 -------- Run | Yrd Mat Min Exi Hostile Shots Fired 140 | . 31 45 64 Missed 48 | . 10 16 22 Damage Taken 1503 | . 279 528 696 Core 251 | . 12 96 143 Absorbed by Shields . | . . . . Core Remaining (%) 100 | 100 . . . Volleys Fired 82 | 1 35 31 15 Largest 2 | 2 2 2 2 Hottest 98 | 40 46 58 98 Shots Fired 153 | 2 70 64 17 Gun 128 | 2 70 40 16 Cannon 19 | . . 19 . Launcher 6 | . . 5 1 Special . | . . . . Kinetic 145 | 2 70 59 14 Thermal 2 | . . . 2 Explosive 6 | . . 5 1 Electromagnetic . | . . . . Robot Hit Streak 7 | 2 7 7 6 Robot Miss Streak 6 | . 6 3 1 Penetration Max . | . . . . Secondary Targets . | . . . . Shots Hit Robots 72 | 2 28 30 12 Core Hits 45 | 2 12 21 10 Critical Kills 1 | . . . 1 Critical Parts Destroyed 1 | . . 1 . Critical Strikes 2 | . . 1 1 Destroy 2 | . . 1 1 Melee Attacks 1 | . . . 1 Impact . | . . . . Slashing 1 | . . . 1 Piercing . | . . . . Sneak Attacks . | . . . . Combat Hostiles . | . . . . Follow-up Attacks . | . . . . Damage Inflicted 1364 | 21 418 512 413 Guns 876 | 21 403 263 189 Cannons 129 | . . 129 . Explosions 341 | . . 117 224 Melee . | . . . . Ramming 18 | . 15 3 . Kinetic 984 | 21 403 392 168 Thermal 21 | . . . 21 Explosive 341 | . . 117 224 Electromagnetic . | . . . . Impact . | . . . . Slashing . | . . . . Piercing . | . . . . Highest Corruption 9 | . . 9 9 Average Corruption 9 | . . 9 9 Corruption Purged . | . . . . Corruption Blocked . | . . . . Effects 49 | . . 25 24 Message Errors 13 | . . 7 6 Matter Fused 11 | . . 4 7 Heat Flow Errors 7 | . . 3 4 Energy Discharges 1 | . . . 1 Parts Rejected 1 | . . . 1 Data Loss (minor) 11 | . . 7 4 Misfires 5 | . . 4 1 Overload Shots . | . . . . Overflow Damage 8 | . . 8 . Projectiles . | . . . . Explosions 8 | . . 8 . Melee . | . . . . Knockbacks 1 | . . 1 . Impact . | . . . . Kinetic 1 | . . 1 . Secondary . | . . . . Self-Inflicted Damage 65 | . . 65 . Shots 2 | . . 2 . Rammed . | . . . . Targets Rammed 4 | . 3 1 . Kicked 4 | . 3 1 . Crushed . | . . . . Highest Temperature 216 | . 12 216 216 Average Temperature 50 | . 4 53 68 Received Heat Transfer 312 | . 42 150 120 Siege Activations . | . . . . Robots Corrupted . | . . . . Combat Hostiles . | . . . . Parts Fried . | . . . . Impact Corruptions . | . . . . Robots Melted . | . . . . Combat Hostiles . | . . . . Parts Melted . | . . . . Heat Transferred 37 | . . . 37 Parts Sabotaged . | . . . . Parts Stolen . | . . . . Parts Stripped . | . . . . Power Chain Reactions . | . . . . Alert | -11 -10 -10 -10 ------- Run | Yrd Mat Min Exi Peak Influence 189 | 5 189 102 . Initial 27 | . 3 27 . Average 37 | 3 51 26 . Maximum Alert Level . | . . . . Low Security (%) 100 | 100 100 100 . Level 1 . | . . . . Level 2 . | . . . . Level 3 . | . . . . Level 4 . | . . . . Level 5 . | . . . . High Security . | . . . . Max Security . | . . . . Squads Dispatched 4 | . 2 2 . Investigation . | . . . . Extermination . | . . . . Reinforcement 2 | . 2 . . Assault 2 | . . 2 . Garrison . | . . . . Intercept . | . . . . Searches Triggered . | . . . . Construction Impeded . | . . . . Haulers Reinforced . | . . . . Active Scanning Responses . | . . . . Cargo Convoy Interrupts . | . . . . Stealth | -11 -10 -10 -10 --------- Run | Yrd Mat Min Exi Distress Signals 3 | . 1 2 . Communications Jammed . | . . . . Distress Signals . | . . . . Times Spotted 57 | . 21 21 15 Peak Tracking Total 16 | . 5 4 16 Tactical Retreats 12 | . 8 2 2 Traps | -11 -10 -10 -10 ------- Run | Yrd Mat Min Exi Traps Triggered 4 | . 2 2 . Indirectly . | . . . . Trap Hack Attempts . | . . . . Triggered . | . . . . Disarmed . | . . . . Reprogrammed . | . . . . Reused . | . . . . Traps Extracted . | . . . . Installed . | . . . . Triggered . | . . . . Machines | -11 -10 -10 -10 ---------- Run | Yrd Mat Min Exi Machines Disabled 4 | . . . 4 Max in Single Turn 3 | . . . 3 Machines Repaired . | . . . . Machines Dismantled . | . . . . Machines Sabotaged . | . . . . Overloaded Fab Kills . | . . . . Hacking | -11 -10 -10 -10 --------- Run | Yrd Mat Min Exi Machines Accessed 10 | . 7 1 2 Terminals 6 | . 6 . . Fabricators . | . . . . Repair Stations . | . . . . Recycling Units 1 | . 1 . . Scanalyzers . | . . . . Garrison Access . | . . . . Total Hacks 48 | . 15 1 32 Successful 41 | . 8 1 32 Failed 7 | . 7 . . Catastrophic 1 | . 1 . . Database Lockouts . | . . . . Manual . | . . . . Terminals 14 | . 14 . . Fabricators . | . . . . Repair Stations . | . . . . Recycling Units 1 | . 1 . . Scanalyzers . | . . . . Garrison Access . | . . . . Terminal Hacks 40 | . 7 1 32 Record 33 | . 1 . 32 Prototype ID Bank 1 | . 1 . . Open Door 1 | . . 1 . Level Access Points 1 | . 1 . . Emergency Access Points 1 | . 1 . . Locate Traps 1 | . 1 . . Dispatch Records 1 | . 1 . . Hauler Manifests 1 | . 1 . . Fabricator Hacks . | . . . . Repair Station Hacks . | . . . . Recycling Unit Hacks 1 | . 1 . . Report Inventory 1 | . 1 . . Scanalyzer . | . . . . Garrison Access Hacks . | . . . . Unauthorized Hacks . | . . . . Terminals . | . . . . Fabricators . | . . . . Repair Stations . | . . . . Recycling Units . | . . . . Scanalyzers . | . . . . Garrison Access . | . . . . Data Cores Recovered . | . . . . Used . | . . . . Hacking Detections 5 | . 5 . . Full Trace Events 1 | . 1 . . Feedback Events . | . . . . Feedback Blocked . | . . . . Robot Schematics Acquired . | . . . . Robots Built . | . . . . Authchips . | . . . . Time . | . . . . Total Robot Build Rating . | . . . . Part Schematics Acquired . | . . . . Parts Built . | . . . . Authchips . | . . . . Time . | . . . . Total Part Build Rating . | . . . . Parts Repaired . | . . . . Time . | . . . . Parts Recycled . | . . . . Recycled Matter . | . . . . Retrieved Matter . | . . . . Retrieved Components . | . . . . Parts Scanalyzed . | . . . . Part Schematics Acquired . | . . . . Parts Damaged . | . . . . Bothacking | -11 -10 -10 -10 ------------ Run | Yrd Mat Min Exi Used RIF Installer . | . . . . Robots Hacked . | . . . . Non-combat . | . . . . Combat . | . . . . Robot Hacks Applied . | . . . . Relay Couplers Released . | . . . . Fabnet Peak Effective % . | . . . . Robots Rewired . | . . . . Allies Hacked . | . . . . Hacks Repelled . | . . . . Allies | -11 -10 -10 -10 -------- Run | Yrd Mat Min Exi Total Allies 1 | . . 1 . Largest Group 1 | . . 1 . Highest-Rated Group 31 | . . 31 . Highest-Rated Ally 31 | . . 31 . Total Orders . | . . . . Ally Attacks 17 | . . 17 . Total Damage 212 | . . 212 . Kills 1 | . . 1 . Allies Corrupted . | . . . . Allies Melted . | . . . . Intel | -11 -10 -10 -10 ------- Run | Yrd Mat Min Exi Robot Analysis Total . | . . . . Derelict Logs Recovered 2 | . . 2 . Drone Launches . | . . . . Drone Recoveries . | . . . . Exploration | -11 -10 -10 -10 ------------- Run | Yrd Mat Min Exi Turns Passed 4085 | 68 1538 1826 653 Spaces Moved 2094 | 36 844 890 324 Core 15 | 15 . . . Treads . | . . . . Legs 2079 | 21 844 890 324 Wheels . | . . . . Hover . | . . . . Flight . | . . . . Fastest Speed 50 | 50 120 190 120 Average Speed 179 | 146 164 190 189 Slowest Speed 250 | 250 190 190 190 Overloaded Moves . | . . . . Propulsion Burnouts . | . . . . Robots Hopped . | . . . . Cave-ins Triggered . | . . . . Exploration Rate (%) 71 | 5 100 99 81 Regions Visited 3 Branch Regions 2 Pre-discovered Areas 1 | . . . 1 Known Exits Taken . | . . . . Unknown Exits Taken 3 | 1 1 1 . Scrap Searched 1 | . . 1 . Spaces Dug . | . . . . Terrain Destroyed 46 | . . 43 3 Melee . | . . . . Projectile . | . . . . AOE 46 | . . 43 3 Terrain Rammed . | . . . . Walls Destroyed . | . . . . Machines Disabled . | . . . . Actions | -11 -10 -10 -10 --------- Run | Yrd Mat Min Exi Total 2284 | 49 924 965 346 Wait 18 | . 11 7 . Move 2091 | 35 843 889 324 Hop . | . . . . Pick Up 36 | 7 16 12 1 Fast Attach . | . . . . Attach 13 | 6 2 2 3 Detach 2 | . . 2 . Swap 17 | . 6 11 . Drop 20 | . 8 10 2 Fire 82 | 1 35 31 15 Melee 1 | . . . 1 Ram . | . . . . Kick 4 | . 3 1 . Crush . | . . . . Escape Stasis . | . . . . Rewire . | . . . . Trap . | . . . . Miscellaneous . | . . . . Route ------- -11/Scrapyard -10/Materials (discovered 6 exits: *Mat x3 / *Min x2 / [*Sub]) -10/Mines (discovered 3 exits: *Mat x2 / *Exi) -10/Exiles (discovered 2 exits: [*Min x2]) History --------- Turn | Location | Event 32 | -11/Scrapyard | Discovered new exit (range 14) 69 | -11/Scrapyard | Entered Materials 291 | -10/Materials | Discovered new exit (range 13) 305 | -10/Materials | Build established: Mutant 364 | -10/Materials | Discovered new exit (range 13) 366 | -10/Materials | Identified exit to Materials 581 | -10/Materials | Discovered new exit (range 7) 1049 | -10/Materials | Discovered new exit (range 8) 1607 | -10/Materials | Entered Mines 1621 | -10/Mines | Met a Derelict bent on vengeance 1691 | -10/Mines | Learned 2 Materials zone layouts 2020 | -10/Mines | Deemed a non-threat by the Exiles lab entrance 2022 | -10/Mines | Discovered new exit (range 5) 2304 | -10/Mines | Assembled infested the area 2548 | -10/Mines | Joined a pair of Derelicts in attacking an 0b10 outpost 2582 | -10/Mines | A weapon hastily lodged in a ceiling crevice suddenly fell to the ground 2695 | -10/Mines | Met a Derelict who couldn't figure out how to use a Trap Extractor 2899 | -10/Mines | Discovered exit to Materials (range 12) 3062 | -10/Mines | Received a Rocket Launcher from a helpful Derelict 3129 | -10/Mines | Met a Derelict testing a Signal Generator 3433 | -10/Mines | Entered Exiles 3473 | -10/Exiles | Discovered new exit (range 14) 3520 | -10/Exiles | Met 8R-AWN 3543 | -10/Exiles | Met EX-HEX 3608 | -10/Exiles | Met EX-BIN 3650 | -10/Exiles | Aligned with FarCom system 3652 | -10/Exiles | Given EX-Vault access code 3733 | -10/Exiles | Met EX-DEC 3741 | -10/Exiles | Learned location of Zion (-7) 3823 | -10/Exiles | Discovered new exit (range 11) 3964 | -10/Exiles | Visited The Gauntlet 4020 | -10/Exiles | Attacked by the Exiles 4064 | -10/Exiles | Core integrity fell below 50% 4078 | -10/Exiles | Core integrity fell below 20% 4086 | -10/Exiles | Destroyed by as-91682 with Assembled Rifle Last Messages --------------- fire together with ranged weapons in the same volley. Lgt. Armor Plating destroyed. Dropped Lgt. Cannon. System corrupted: Energy discharge (-15). J5-HVA destroyed. as-13145 destroyed. Machine disabled. as-73930 destroyed. Testing Chamber Shield damaged. Testing Apparatus damaged. Rocket Launcher destroyed. Critical hit (Destroy). Aluminum Leg destroyed. Destroyed Asb. Hover Unit. Machine disabled. as-54451 destroyed. Aluminum Leg destroyed. AM-PHS suffers critical hit (Destroy). AM-PHS destroyed. Map ----- +----------------------------------------------------+ | ???????????????????????????????????## | | ????????????????????????????????????#" | | ????????????????????????????????????#"""" | | ????????????????????????????????????#"" | | ????????????????????????????????????#" | | ????????????????????????????????????#""" | | ????????????????????????????????????## | | ?????????????????????????????????????#"" | | ?????????????????????????????????????##""" | | ??????????????????????????????????????##"""" | | ???????????????????????????????????????### | | ?????????????????????????????????????????##### | | ?????????????????????????????????????????????## | | ??????????????????????????????????????????????# | | ??????????????????????????????????????????????# | | ??????????????????????????????????????????????# | | ?????????????????????????????????????###??????# | | ??????????????????????????""""""???#"""""?????# | | ????????????????????????#"""""""#???"""""""???# | | ?????????????????????#"""""""" "#??#" """"#??# | | ?????????????????????#""#""" """#??#"" """???# | | ?????????????????????#""?"" ""????"" ""???# | | ??????????????????"###""###"""########"""###### | | ???????????????"? """"""" """""""" """""" | | ?????????? """" "!= """" | | ???????????" @%=/ %[ %c | | ???????????"" ]*%a%a * | | ??????????" % a% | | ???????????" " =% "" | | ??????????? """ """""" """" " """" | | ??????????????##"""####### " #""###"""########" | | ???????????????" ????????"" ""#""#"" ""????"" | | ???????????????"?????????""" ""#""#""" ""???#"" | | ?????????????????????????" """"""""#" " "#??#""" | | ?????????????????????????"""""""#???"""""""???#"" | | ??????????????????????????"""""?????"""""""#???""" | | ??????????????????????????????????????##?#??????## | | ?????????????????????????????????????????????????? | | ?????????????????????????????????????????????????? | | ?????????????????????????????????????????????????? | | ?????????????????????????????????????????????????? | | | | | | | | | | | | | | | | | | | +----------------------------------------------------+ Best States ------------- Heat Dissipation 25 Energy Generation 14 Energy Capacity 250 Matter Stores 300 Matter Capacity 300 Sight Range 16 Terrain Scan Density 10 Armor Coverage 150 Evasion (%) 55 Item Schematics ----------------- None Robot Schematics ------------------ None Fabricated ------------ Nothing Alien Tech Used ----------------- None Achievements -------------- I Survived The Infestation Let's See Who's Tougher Librarian Challenges ------------ None Game ------ Seed GuidedFactoryPerforator Manual? 0 Play Time 00:52:10 Cumulative 4.9 hours Start 2024.04.02 @ 20:46:48 End 2024.04.02 @ 21:40:39 Sessions 1 Manual Loads 0 Difficulty Rogue Special Mode None Game No. 5 Rogue 5 Adventurer 0 Explorer 0 Win Type - Total 0 Types 0/0/0/0/0/0/0/0/0 Lore% 7 Gallery% 7 Achievement% 10 Wizard Run 0 Options --------- Layout 1 ASCII 0 Keyboard 0 Movement Mouse Keybinds 0 Fullscreen 1 Font 16/SmallcapsGlow Map View 55x38 Zoom Use 0% Tactical HUD 0 Map Filters NONE Filters NONE Steam 1 RUN: 84b00531-fd52-4f74-b16e-2f2c5f9694cd